[Event "ESTCC-65 2025"]
[Site "Swidnica"]
[Date "2025.04.10"]
[Round "7"]
[White "Quinn, John M"]
[Black "Nunn, John D M"]
[Result "0-1"]
[Annotator "TA"]
[ECO "E90"]
[WhiteElo "2073"]
[BlackElo "2528"]
[PlyCount "178"]
[EventDate "2025.04.05"]
[EventType "team-tourn"]
[EventCountry "POL"]
[SourceTitle "playchess.com"]
[Source "ChessBase"]
[SourceQuality "1"]
[WhiteTeam "England"]
[BlackTeam "England"]
[WhiteTeamCountry "ENG"]
[BlackTeamCountry "ENG"]
[TimeControl "40/5400+30:1800+30"]

{[%evp 13,178,33,33,37,32,44,56,44,54,61,68,21,41,22,58,62,58,68,106,76,77,77,115,106,132,66,54,56,118,134,141,49,66,3,0,0,143,-622,-161,-134,128,-112,163,163,166,0,0,0,0,0,0,0,0,0,0,-20,2,2,3,3,3,0,0,0,0,0,0,0,0,0,0,0,0,0,0,0,0,-8,0,-6,0,0,0,-8,-8,-14,-20,-41,-41,-41,-40,-41,-38,-39,-41,-41,-41,-41,-32,-29,-28,-34,-34,-34,-35,-61,-61,-67,-67,-73,-73,-74,-74,-74,-74,-74,-74,-74,-74,-74,-74,-74,-73,-74,-73,-73,-73,-74,-73,-73,-73,-73,-73,-73,-73,-73,-73,-73,-73,-74,-74,-74,-74,-74,-74,-74,-74,-76,-76,-76,-74,-75,-74,-77,-75,-75,-74,-29988,-29989,-29989,-29990,-29990,-29991,-29991,-29989,-29990,-29991]} 1. d4 {[%emt 0:00:03]} Nf6 {[%emt 0:00:06]} 2. c4 {[%emt 0:00:05]} g6 {[%emt 0:00:03]} 3. Nc3 {[%emt 0:00:07]} Bg7 {[%emt 0:00:04]} 4. e4 {[%emt 0:00:07]} d6 {[%emt 0:00:04]} 5. Nf3 {[%emt 0:00:13]} O-O {[%emt 0:00:06]} 6. h3 {[%emt 0:00:03]} e5 {[%emt 0:00:09]} 7. d5 {[%emt 0:00:05]} Nh5 {[%emt 0:01:05]} 8. g3 {[%emt 0:01:37] E90: King's Indian: Classical: Early deviations and 6 h3.} f5 {[%emt 0:00:32]} 9. exf5 {[%emt 0:03:28]} gxf5 {[%emt 0:00:25]} 10. Nh4 {[%emt 0:00:12] White is slightly better. 10.Nh4 scores better than 10.Ng5.} Nf6 {[%emt 0:01:24]} 11. Qc2 {[%emt 0:02:07]} Na6 {[%emt 0:09:26]} 12. a3 {[%emt 0:02:21] Prevents Nb4.} (12. Nxf5 Nb4 13. Qa4 Bxf5 $11) (12. Bg5 $14) 12... Nc5 $11 {[%emt 0:05:20][%cal Of5f4]} 13. Be3 {[%emt 0:03:33][%cal Oe3c5]} e4 {[%emt 0:13:49]} 14. O-O-O {[%emt 0:10:19]} a5 {[%emt 0:01:53]} 15. Ng2 $146 {[%emt 0:02:23]} (15. f4 exf3 16. Nxf3 Nfe4 17. Bd4 Qe7 18. Rg1 Bd7 19. Kb1 {0-1 Ovchinnikov,V (2426)-Souleidis,G (2410) Titled Tuesday intern op 06th Sep Late blitz 2022 (11)}) 15... Qe8 {[%emt 0:04:02]} 16. Nb5 {[%emt 0:11:24]} Qe7 {[%emt 0:05:27]} 17. Nf4 {[%emt 0:04:45]} a4 {[%emt 0:00:52]} 18. Kb1 {[%emt 0:00:40]} Nb3 {[%emt 0:11:29]} 19. Nd4 {[%emt 0:04:29]} (19. Be2 $16) 19... Nxd4 $14 {[%emt 0:00:16]} 20. Bxd4 {[%emt 0:00:17]} c6 {[%emt 0:00:10]} ({Black should try} 20... c5 $14 21. dxc6 bxc6) 21. c5 $16 {[%emt 0:05:49]} Nxd5 {[%emt 0:11:05]} 22. cxd6 {[%emt 0:05:57]} (22. Bc4 $16) 22... Qxd6 $14 {[%emt 0:00:27]} 23. Nxd5 {[%emt 0:02:05]} ({Better is} 23. Bc4 $14 Bxd4 24. Bxd5+ (24. Rxd4 Be6 $18) 24... cxd5 25. Rxd4) 23... cxd5 $11 {[%emt 0:02:23]} 24. Bc5 {[%emt 0:05:36]} Qc6 {[%emt 0:02:08] [#]} 25. Rd3 $2 {[%mdl 8192] [#]} d4 $2 26. Rxd4 $19 {[%emt 0:04:58]} Bd7 $2 {[%mdl 8192] [#]} (26... Bxd4 $17 27. Bc4+ Be6 28. Bxe6+ Qxe6 29. Bxd4 Rfe8) 27. Rd5 Be6 $2 {[%emt 0:08:19][%mdl 8192]} (27... Qxd5 $2 {is the wrong capture.} 28. Bc4 $18) (27... Rfc8 $1 $17 {[%cal Od7e6] and life is bright. Threatens to win with ...Be6!.} 28. Bc4 Be6) 28. Rd6 $18 {[%emt 0:04:22]} Bb3 {[%emt 0:00:25] [#]} 29. Rxc6 $2 {[%emt 0:10:13]} (29. Bc4+ $1 $18 Kh8 30. Bxb3 axb3 31. Qc4) 29... Bxc2+ $11 {[%emt 0:00:29]} 30. Kxc2 {[%emt 0:00:06]} bxc6 {[%emt 0:01:22]} 31. Bc4+ {[%emt 0:00:08] A strong pair of Bishops.} Kh8 {[%emt 0:00:32]} 32. Bxf8 {[%emt 0:00:40]} Rxf8 {[%emt 0:00:06][%mdl 4096] Endgame KRB-KRB} 33. Rd1 {[%emt 0:06:59]} c5 {[%emt 0:00:22] Opposite bishops and equal position} 34. Rd7 {[%emt 0:06:47]} Rb8 {[%emt 0:02:06]} 35. b3 {[%emt 0:00:37]} axb3+ {[%emt 0:00:35]} 36. Bxb3 {[%emt 0:00:07]} Bd4 {[%emt 0:00:11]} 37. Rf7 {[%emt 0:01:03]} Bxf2 {[%emt 0:00:59]} 38. Rxf5 {[%emt 0:00:46]} Bd4 {[%emt 0:00:08]} 39. Rf7 {[%emt 0:02:23]} Re8 {[%emt 0:03:43]} 40. Bc4 {[%emt 0:01:32]} e3 {[%emt 0:00:13]} 41. Be2 {[%emt 0:30:43]} Ra8 {[%emt 0:31:08]} 42. Kb3 {[%emt 0:00:00]} Rb8+ {[%emt 0:00:00]} 43. Kc4 {[%emt 0:00:00]} Kg8 {[%emt 0:00:00]} 44. Ra7 {[%emt 0:00:00]} Rb2 {[%emt 0:00:00]} 45. Bh5 {[%emt 0:00:00]} Rh2 {[%emt 0:00:00]} 46. Bg4 {[%emt 0:00:00]} Kf8 {[%emt 0:00:00]} 47. Ra8+ {[%emt 0:00:00]} Kf7 {[%emt 0:00:00]} 48. Ra7+ {[%emt 0:00:00]} Kg6 {[%emt 0:00:00]} 49. Ra6+ {[%emt 0:00:00]} Kg5 {[%emt 0:00:00]} 50. Ra8 {[%emt 0:00:00]} h5 {[%emt 0:00:00]} 51. Rg8+ {[%emt 0:00:00]} Kf6 {[%emt 0:00:00]} 52. Bxh5 {[%emt 0:00:00]} e2 {[%emt 0:00:00]} ({Don't take} 52... Rxh3 53. Be2 $17) 53. Re8 {[%emt 0:00:47]} Be5 {[%emt 0:00:00]} 54. Bxe2 {[%emt 0:00:55]} Rxe2 $15 {[%emt 0:00:00] KRB-KR} 55. Kd5 {[%emt 0:00:33] [#]} c4 $1 {[%emt 0:06:31]} 56. Kxc4 {[%emt 0:00:38]} Kf7 {[%emt 0:00:07]} 57. Ra8 {[%emt 0:00:28]} Bxg3 {[%emt 0:00:07]} 58. Kd5 {[%emt 0:00:38]} Re5+ {[%emt 0:00:37]} 59. Kd4 {[%emt 0:00:07]} Rh5 {[%emt 0:00:28]} 60. Ra7+ {[%emt 0:01:35]} Ke6 {[%emt 0:00:12] ( -> ...Bf2+)} 61. Ra6+ {[%emt 0:00:04]} Bd6 {[%emt 0:00:16]} 62. a4 {[%emt 0:00:26]} Rh4+ {[%emt 0:00:13]} (62... Rxh3 $2 63. Ra8 Rh1 64. a5 $19) 63. Kd3 {[%emt 0:00:18]} Rxh3+ {[%emt 0:00:07]} 64. Ke4 {[%emt 0:00:07]} Rh4+ {[%emt 0:00:07]} 65. Kd3 {[%emt 0:00:04]} Kd5 {[%emt 0:00:07]} 66. Ra8 {[%emt 0:00:11]} Rh3+ {[%emt 0:00:24]} 67. Kd2 {[%emt 0:00:09]} Kc6 {[%emt 0:01:52]} 68. Ra6+ {[%emt 0:00:54]} Kc7 {[%emt 0:00:30]} 69. Ra7+ {[%emt 0:00:12]} Kb6 {[%emt 0:00:16]} 70. Rd7 {[%emt 0:00:06]} Bc5 {[%emt 0:00:31]} 71. Rf7 {[%emt 0:01:55]} Ra3 {[%emt 0:02:33]} 72. Rf6+ {[%emt 0:01:32]} Kc7 {[%emt 0:01:07]} 73. Rf5 {[%emt 0:00:38]} Kc6 {[%emt 0:00:05]} 74. Kc2 {[%emt 0:01:14]} Rxa4 {[%emt 0:00:06]} 75. Kb3 {[%emt 0:00:23]} Rh4 {[%emt 0:00:44]} 76. Rf3 {[%emt 0:00:19]} Kd5 {[%emt 0:00:29]} 77. Rd3+ {[%emt 0:00:20]} Bd4 {[%emt 0:00:07]} 78. Rg3 {[%emt 0:00:13]} Rh2 {[%emt 0:00:37] ( -> ...Rb2+)} 79. Rg5+ {[%emt 0:00:38]} Be5 {[%emt 0:00:11]} 80. Rf5 {[%emt 0:00:22]} Rb2+ {[%emt 0:00:11]} 81. Ka3 {[%emt 0:00:05][%cal Of5e5]} Rb8 {[%emt 0:00:30]} 82. Rh5 {[%emt 0:00:09]} Rb7 {[%emt 0:00:31]} 83. Rf5 {[%emt 0:03:17]} Ke4 {[%emt 0:00:48]} 84. Rh5 {[%emt 0:00:13]} Kd4 {[%emt 0:01:02]} 85. Rh1 $2 {[%emt 0:01:39][%mdl 8192] [#]} (85. Ka4 $17) 85... Kc4 $1 {[%emt 0:00:12][%cal Rb7a7] Black mates.} 86. Rh4+ {[%emt 0:01:04]} Bd4 {[%emt 0:00:06][%cal Rb7a7]} 87. Ka2 {[%emt 0:00:18]} Rb2+ {[%emt 0:01:42]} 88. Ka3 {[%emt 0:00:08]} Rg2 {[%emt 0:00:11]} 89. Rf4 {[%emt 0:00:22]} Rg1 {[%emt 0:00:09] Weighted Error Value: White=0.28 (precise) /Black=0.32  Loses game:     	White=2     	Black=1      Missed win:     	White=1     	---        Mistake:       	White=5     	Black=3      Inaccurate:     	White=1     	Black=3      OK:         	White=27    	Black=41     Best:        	White=4     	Black=7      Strong:       	---       	Black=1} 0-1

[Event "ESTCC-65 2025"]
[Site "Swidnica"]
[Date "2025.04.10"]
[Round "7"]
[White "Hewson, Brian W R"]
[Black "Large, Peter G"]
[Result "0-1"]
[Annotator "ChessBase"]
[ECO "A40"]
[WhiteElo "2066"]
[BlackElo "2342"]
[PlyCount "80"]
[EventDate "2025.04.05"]
[EventType "team-tourn"]
[EventCountry "POL"]
[SourceTitle "playchess.com"]
[Source "ChessBase"]
[SourceQuality "1"]
[WhiteTeam "England"]
[BlackTeam "England"]
[WhiteTeamCountry "ENG"]
[BlackTeamCountry "ENG"]
[TimeControl "40/5400+30:1800+30"]

1. d4 {[%emt 0:00:08]} e6 {[%emt 0:00:25]} 2. g3 {[%emt 0:00:19]} c5 {[%emt 0:02:02]} 3. e3 {[%emt 0:04:33]} Nf6 {[%emt 0:01:15]} 4. Bg2 {[%emt 0:00:19]} d5 {[%emt 0:05:33]} 5. Nf3 {[%emt 0:05:20]} Nc6 {[%emt 0:03:25]} 6. Nbd2 {[%emt 0:10:09]} b6 {[%emt 0:02:06]} 7. O-O {[%emt 0:03:48]} Bb7 {[%emt 0:01:57]} 8. b3 {[%emt 0:00:37]} Rc8 {[%emt 0:03:41]} 9. Bb2 {[%emt 0:00:31]} cxd4 {[%emt 0:02:03]} 10. Nxd4 {[%emt 0:01:18]} Nxd4 {[%emt 0:01:14]} 11. Bxd4 {[%emt 0:07:49]} Bb4 {[%emt 0:01:50]} 12. a3 {[%emt 0:05:21]} Bc3 {[%emt 0:04:24]} 13. Bxc3 {[%emt 0:00:56]} Rxc3 {[%emt 0:00:08]} 14. Rc1 {[%emt 0:00:05]} O-O {[%emt 0:01:34]} 15. Nb1 {[%emt 0:00:11]} Rc7 {[%emt 0:02:11]} 16. Re1 {[%emt 0:04:10]} Qe7 {[%emt 0:03:00]} 17. c4 {[%emt 0:01:47]} Rfc8 {[%emt 0:13:01]} 18. Qd2 {[%emt 0:20:10]} dxc4 {[%emt 0:05:35]} 19. Bxb7 {[%emt 0:03:28]} Rxb7 {[%emt 0:00:15]} 20. Rxc4 {[%emt 0:00:26]} Rxc4 {[%emt 0:00:07]} 21. bxc4 {[%emt 0:00:10]} Rc7 {[%emt 0:01:22]} 22. Qd3 {[%emt 0:00:28]} g6 {[%emt 0:03:10]} 23. Nd2 {[%emt 0:02:47]} Rd7 {[%emt 0:04:38]} 24. Qc3 {[%emt 0:00:37]} Qd8 {[%emt 0:00:57]} 25. Nf3 {[%emt 0:03:03]} Ne4 {[%emt 0:01:17]} 26. Qe5 {[%emt 0:04:09]} Nc5 {[%emt 0:01:25]} 27. Qa1 {[%emt 0:04:33]} Nd3 {[%emt 0:08:21]} 28. Rf1 {[%emt 0:00:37]} Qc7 {[%emt 0:02:12]} 29. Qc3 {[%emt 0:00:34]} b5 {[%emt 0:03:30]} 30. Nd2 {[%emt 0:03:05]} Qc6 {[%emt 0:06:09]} 31. Rb1 {[%emt 0:04:22]} a6 {[%emt 0:09:37]} 32. Rf1 {[%emt 0:04:36]} h5 {[%emt 0:00:49]} 33. h4 {[%emt 0:00:42]} Kh7 {[%emt 0:00:33]} 34. Rb1 {[%emt 0:01:26]} e5 {[%emt 0:00:49]} 35. Rb3 {[%emt 0:01:51]} Ne1 {[%emt 0:01:55]} 36. Kf1 {[%emt 0:00:11]} Rd3 {[%emt 0:04:02]} 37. Qc1 {[%emt 0:02:52]} Rxb3 {[%emt 0:01:01]} 38. Nxb3 {[%emt 0:00:24]} Nd3 {[%emt 0:00:42]} 39. cxb5 {[%emt 0:01:17]} Qh1+ {[%emt 0:00:18]} 40. Ke2 {[%emt 0:00:00]} Nxc1+ {[%emt 0:00:00]} 0-1

[Event "ESTCC-65 2025"]
[Site "Swidnica"]
[Date "2025.04.10"]
[Round "7"]
[White "Mueller, Gerhard"]
[Black "Jahnel, Guenther"]
[Result "1/2-1/2"]
[Annotator "NA"]
[ECO "D01"]
[WhiteElo "2052"]
[BlackElo "2148"]
[PlyCount "34"]
[EventDate "2025.04.05"]
[EventType "team-tourn"]
[EventCountry "POL"]
[SourceTitle "playchess.com"]
[Source "ChessBase"]
[SourceQuality "1"]
[WhiteTeam "Germany"]
[BlackTeam "Germany"]
[WhiteTeamCountry "GER"]
[BlackTeamCountry "GER"]
[TimeControl "40/5400+30:1800+30"]

1. d4 {[%emt 0:00:04]} Nf6 {[%emt 0:00:21]} 2. Nc3 {[%emt 0:00:12]} d5 {[%emt 0:01:14]} 3. Bg5 {[%emt 0:00:08]} Nbd7 {[%emt 0:01:02]} 4. Nf3 {[%emt 0:00:09]} g6 {[%emt 0:01:12]} 5. e3 {[%emt 0:00:07]} Bg7 {[%emt 0:00:53]} 6. Bd3 {[%emt 0:00:09]} O-O {[%emt 0:00:53]} 7. O-O {[%emt 0:00:09]} b6 {[%emt 0:01:57]} 8. e4 {[%emt 0:01:06]} dxe4 {[%emt 0:00:34]} 9. Nxe4 {[%emt 0:00:10]} Bb7 {[%emt 0:00:20]} 10. Re1 {[%emt 0:01:21]} c5 {[%emt 0:08:21]} 11. c3 {[%emt 0:00:32]} cxd4 {[%emt 0:02:27]} 12. Nxd4 {[%emt 0:00:14]} Ne5 {[%emt 0:03:03]} 13. Nxf6+ {[%emt 0:22:47]} exf6 {[%emt 0:01:18]} 14. Bf4 {[%emt 0:00:34]} Nxd3 {[%emt 0:05:20]} 15. Qxd3 {[%emt 0:00:12]} Qd5 {[%emt 0:01:05]} 16. Qf3 {[%emt 0:07:41]} Qd7 {[%emt 0:08:20]} 17. Qg3 {[%emt 0:01:37]} Rfe8 {[%emt 0:03:55]} 1/2-1/2

[Event "ESTCC-65 2025"]
[Site "Swidnica"]
[Date "2025.04.10"]
[Round "7"]
[White "Becker, Norbert"]
[Black "Dietze, Frank"]
[Result "1-0"]
[Annotator "ChessBase"]
[ECO "A15"]
[WhiteElo "2032"]
[BlackElo "2102"]
[PlyCount "85"]
[EventDate "2025.04.05"]
[EventType "team-tourn"]
[EventCountry "POL"]
[SourceTitle "playchess.com"]
[Source "ChessBase"]
[SourceQuality "1"]
[WhiteTeam "Germany"]
[BlackTeam "Germany"]
[WhiteTeamCountry "GER"]
[BlackTeamCountry "GER"]
[TimeControl "40/5400+30:1800+30"]

1. c4 {[%emt 0:00:05]} Nf6 {[%emt 0:00:09]} 2. g3 {[%emt 0:00:15]} g6 {[%emt 0:00:18]} 3. Bg2 {[%emt 0:00:09]} Bg7 {[%emt 0:00:07]} 4. Nc3 {[%emt 0:00:46]} O-O {[%emt 0:00:10]} 5. e4 {[%emt 0:05:02]} d6 {[%emt 0:00:56]} 6. Nge2 {[%emt 0:00:14]} c5 {[%emt 0:00:25]} 7. O-O {[%emt 0:03:34]} Nc6 {[%emt 0:00:08]} 8. d3 {[%emt 0:01:09]} Rb8 {[%emt 0:00:48]} 9. a3 {[%emt 0:00:59]} a6 {[%emt 0:00:13]} 10. Rb1 {[%emt 0:00:36]} b5 {[%emt 0:03:30]} 11. cxb5 {[%emt 0:00:50]} axb5 {[%emt 0:00:27]} 12. b4 {[%emt 0:00:15]} cxb4 {[%emt 0:10:50]} 13. axb4 {[%emt 0:00:21]} Ne8 {[%emt 0:02:43]} 14. Be3 {[%emt 0:02:31]} Bg4 {[%emt 0:03:42]} 15. h3 {[%emt 0:07:04]} Bxc3 {[%emt 0:02:48]} 16. hxg4 {[%emt 0:00:11]} Bg7 {[%emt 0:00:14]} 17. g5 {[%emt 0:04:28]} Qd7 {[%emt 0:06:08]} 18. d4 {[%emt 0:06:50]} f6 {[%emt 0:17:20]} 19. Nf4 {[%emt 0:09:49]} Nc7 {[%emt 0:05:12]} 20. gxf6 {[%emt 0:10:32]} exf6 {[%emt 0:07:34]} 21. Qb3+ {[%emt 0:03:32]} Kh8 {[%emt 0:00:02]} 22. Rfc1 {[%emt 0:01:10]} Nd8 {[%emt 0:01:12]} 23. Rc2 {[%emt 0:03:32]} f5 {[%emt 0:02:49]} 24. exf5 {[%emt 0:01:58]} gxf5 {[%emt 0:01:31]} 25. Rbc1 {[%emt 0:10:04]} Nce6 {[%emt 0:02:58]} 26. Qd5 {[%emt 0:03:53]} Nxf4 {[%emt 0:05:20]} 27. Bxf4 {[%emt 0:00:14]} Ne6 {[%emt 0:00:14]} 28. Be5 {[%emt 0:09:14]} Rf7 {[%emt 0:03:05]} 29. Bxg7+ {[%emt 0:00:56]} Nxg7 {[%emt 0:00:46]} 30. Rc7 {[%emt 0:03:29]} Qxc7 {[%emt 0:00:10]} 31. Rxc7 {[%emt 0:00:05]} Rxc7 {[%emt 0:00:01]} 32. Qxd6 {[%emt 0:00:30]} Rcc8 {[%emt 0:01:04]} 33. Bc6 {[%emt 0:02:26]} f4 {[%emt 0:08:22]} 34. Qxf4 {[%emt 0:02:32]} Rf8 {[%emt 0:01:44]} 35. Qe5 {[%emt 0:00:49]} Rbd8 {[%emt 0:00:37]} 36. d5 {[%emt 0:01:04]} Rf5 {[%emt 0:00:09]} 37. Qe2 {[%emt 0:03:14]} Rdf8 {[%emt 0:01:41]} 38. Qe3 {[%emt 0:04:29]} Rf3 {[%emt 0:00:22]} 39. Qc5 {[%emt 0:00:08]} Nh5 {[%emt 0:01:41]} 40. d6 {[%emt 0:00:00]} R3f5 {[%emt 0:00:00]} 41. Qd4+ {[%emt 0:02:02]} Ng7 {[%emt 0:01:11]} 42. d7 {[%emt 0:01:22]} Rd8 {[%emt 0:00:04]} 43. Qb6 {[%emt 0:01:48]} 1-0

[Event "ESTCC-65 2025"]
[Site "Swidnica"]
[Date "2025.04.10"]
[Round "7"]
[White "Topchii, Gennadii"]
[Black "Lange, Torsten"]
[Result "1-0"]
[Annotator "NA"]
[ECO "A10"]
[WhiteElo "2012"]
[BlackElo "2025"]
[PlyCount "113"]
[EventDate "2025.04.05"]
[EventType "team-tourn"]
[EventCountry "POL"]
[SourceTitle "playchess.com"]
[Source "ChessBase"]
[SourceQuality "1"]
[WhiteTeam "Germany"]
[BlackTeam "Germany"]
[WhiteTeamCountry "GER"]
[BlackTeamCountry "GER"]
[TimeControl "40/5400+30:1800+30"]

1. c4 {[%emt 0:00:03]} d6 {[%emt 0:00:19]} 2. Nc3 {[%emt 0:00:11]} c5 {[%emt 0:00:35]} 3. g3 {[%emt 0:00:11]} Nc6 {[%emt 0:00:11]} 4. Bg2 {[%emt 0:00:06]} g6 {[%emt 0:00:21]} 5. e3 {[%emt 0:00:52]} Bg7 {[%emt 0:00:25]} 6. Nge2 {[%emt 0:00:11]} e6 {[%emt 0:04:11]} 7. O-O {[%emt 0:00:12]} Nf6 {[%emt 0:00:33]} 8. d4 {[%emt 0:00:20]} O-O {[%emt 0:02:14]} 9. b3 {[%emt 0:02:42]} a6 {[%emt 0:01:01]} 10. Bb2 {[%emt 0:00:26]} Ne7 {[%emt 0:02:28]} 11. dxc5 {[%emt 0:00:53]} dxc5 {[%emt 0:00:14]} 12. Qxd8 {[%emt 0:00:11]} Rxd8 {[%emt 0:00:09]} 13. Rfd1 {[%emt 0:00:14]} Nd7 {[%emt 0:37:00]} 14. Ba3 {[%emt 0:01:49]} Re8 {[%emt 0:02:29]} 15. Rd2 {[%emt 0:01:38]} Ra7 {[%emt 0:02:46]} 16. Rad1 {[%emt 0:00:37]} b6 {[%emt 0:00:35]} 17. Ne4 {[%emt 0:01:04]} Rc7 {[%emt 0:06:47]} 18. Nd6 {[%emt 0:01:12]} Rd8 {[%emt 0:00:16]} 19. Nxc8 {[%emt 0:03:46]} Nxc8 {[%emt 0:00:21]} 20. Bb2 {[%emt 0:00:17]} Bxb2 {[%emt 0:00:56]} 21. Rxb2 {[%emt 0:00:02]} Kf8 {[%emt 0:02:11]} 22. Rbd2 {[%emt 0:00:12]} Ke7 {[%emt 0:01:33]} 23. Nc3 {[%emt 0:00:24]} Re8 {[%emt 0:08:52]} 24. Ne4 {[%emt 0:00:21]} Nf8 {[%emt 0:01:13]} 25. Kf1 {[%emt 0:06:02]} Rd7 {[%emt 0:01:11]} 26. Rxd7+ {[%emt 0:05:02]} Nxd7 {[%emt 0:00:10]} 27. Rxd7+ {[%emt 0:00:04]} Kxd7 {[%emt 0:00:28]} 28. Nf6+ {[%emt 0:00:00]} Ke7 {[%emt 0:00:31]} 29. Nxe8 {[%emt 0:00:11]} Kxe8 {[%emt 0:00:22]} 30. Bb7 {[%emt 0:00:10]} Nd6 {[%emt 0:01:29]} 31. Bxa6 {[%emt 0:00:09]} Kd7 {[%emt 0:03:56]} 32. f3 {[%emt 0:01:45]} e5 {[%emt 0:03:06]} 33. Ke2 {[%emt 0:01:46]} g5 {[%emt 0:01:34]} 34. g4 {[%emt 0:01:40]} h6 {[%emt 0:01:47]} 35. Bb5+ {[%emt 0:03:30]} Kc7 {[%emt 0:00:54]} 36. Kd3 {[%emt 0:00:16]} f6 {[%emt 0:00:38]} 37. a3 {[%emt 0:00:22]} e4+ {[%emt 0:05:50]} 38. Ke2 {[%emt 0:01:47]} Nf7 {[%emt 0:05:45]} 39. f4 {[%emt 0:01:31]} Nd8 {[%emt 0:02:20]} 40. Be8 {[%emt 0:00:00]} Ne6 {[%emt 0:00:00]} 41. fxg5 {[%emt 0:01:17]} Nxg5 {[%emt 0:01:46]} 42. Bg6 {[%emt 0:00:44]} Kd6 {[%emt 0:01:35]} 43. h4 {[%emt 0:00:29]} Nf3 {[%emt 0:00:35]} 44. Bxe4 {[%emt 0:00:09]} Nxh4 {[%emt 0:00:27]} 45. b4 {[%emt 0:01:16]} cxb4 {[%emt 0:00:31]} 46. axb4 {[%emt 0:00:09]} Ke5 {[%emt 0:00:40]} 47. Bd3 {[%emt 0:00:24]} h5 {[%emt 0:07:58]} 48. gxh5 f5 49. Kf2 {[%emt 0:01:42]} Kf6 {[%emt 0:03:58]} 50. h6 {[%emt 0:00:59]} Ng6 {[%emt 0:01:09]} 51. Kg3 {[%emt 0:00:48]} Ke5 {[%emt 0:02:47]} 52. h7 {[%emt 0:00:57]} Kf6 {[%emt 0:00:47]} 53. c5 {[%emt 0:00:44]} bxc5 {[%emt 0:00:11]} 54. bxc5 {[%emt 0:00:07]} Ke6 {[%emt 0:02:38]} 55. c6 {[%emt 0:00:27]} Nh8 {[%emt 0:00:42]} 56. Kf4 {[%emt 0:00:19]} Ng6+ {[%emt 0:02:49]} 57. Kf3 1-0

[Event "ESTCC-65 2025"]
[Site "Swidnica"]
[Date "2025.04.10"]
[Round "7"]
[White "Van Herck, Marcel"]
[Black "Patola, Eero"]
[Result "1-0"]
[Annotator "ChessBase"]
[ECO "B06"]
[WhiteElo "1962"]
[BlackElo "1872"]
[PlyCount "79"]
[EventDate "2025.04.05"]
[EventType "team-tourn"]
[EventCountry "POL"]
[SourceTitle "playchess.com"]
[Source "ChessBase"]
[SourceQuality "1"]
[WhiteTeam "Belgium"]
[BlackTeam "Finland"]
[WhiteTeamCountry "BEL"]
[BlackTeamCountry "FIN"]
[TimeControl "40/5400+30:1800+30"]

1. d4 {[%emt 0:00:20]} g6 {[%emt 0:00:23]} 2. e4 {[%emt 0:01:15]} Bg7 {[%emt 0:00:35]} 3. Nc3 {[%emt 0:06:17]} d6 {[%emt 0:02:16]} 4. Be3 {[%emt 0:04:02]} c6 {[%emt 0:01:55]} 5. f3 {[%emt 0:05:12]} Nf6 {[%emt 0:03:36]} 6. Qd2 {[%emt 0:00:59]} b5 {[%emt 0:02:38]} 7. a4 {[%emt 0:05:00]} b4 {[%emt 0:01:58]} 8. Na2 {[%emt 0:01:01]} a5 {[%emt 0:00:24]} 9. Nc1 {[%emt 0:00:18]} O-O {[%emt 0:01:44]} 10. Bd3 {[%emt 0:03:42]} Nbd7 {[%emt 0:04:34]} 11. Nge2 {[%emt 0:00:44]} e5 {[%emt 0:02:09]} 12. O-O {[%emt 0:11:56]} exd4 {[%emt 0:08:38]} 13. Nxd4 {[%emt 0:00:26]} Bb7 {[%emt 0:03:34]} 14. Nce2 {[%emt 0:08:07]} Ne5 {[%emt 0:02:29]} 15. c4 {[%emt 0:09:47]} Nfd7 {[%emt 0:04:08]} 16. b3 {[%emt 0:13:10]} Nxd3 {[%emt 0:21:30]} 17. Qxd3 {[%emt 0:00:04]} c5 {[%emt 0:06:00]} 18. Nb5 {[%emt 0:00:14]} Bxa1 {[%emt 0:01:08]} 19. Rxa1 {[%emt 0:00:07]} Ne5 {[%emt 0:02:12]} 20. Qxd6 {[%emt 0:00:28]} Qxd6 {[%emt 0:02:49]} 21. Nxd6 {[%emt 0:00:05]} Bc6 {[%emt 0:01:57]} 22. Bxc5 Rfd8 {[%emt 0:01:09]} 23. Rd1 {[%emt 0:04:30]} Nd7 {[%emt 0:04:15]} 24. Be3 {[%emt 0:02:27]} Nf8 {[%emt 0:01:32]} 25. Bb6 {[%emt 0:03:13]} Rd7 {[%emt 0:00:58]} 26. e5 {[%emt 0:02:45]} Ne6 {[%emt 0:00:38]} 27. Nd4 {[%emt 0:01:58]} Ra6 {[%emt 0:03:17]} 28. c5 {[%emt 0:06:03]} Nxd4 {[%emt 0:01:35]} 29. Rxd4 {[%emt 0:00:05]} Ra8 {[%emt 0:05:32]} 30. Kf2 {[%emt 0:00:44]} Re7 {[%emt 0:00:41]} 31. Nc4 {[%emt 0:01:00]} Bd7 {[%emt 0:01:49]} 32. Bxa5 {[%emt 0:01:57]} Be6 {[%emt 0:00:56]} 33. Bxb4 {[%emt 0:00:59]} Bxc4 {[%emt 0:00:47]} 34. Rxc4 {[%emt 0:00:11]} Rxe5 {[%emt 0:00:48]} 35. c6 {[%emt 0:00:39]} Ree8 {[%emt 0:01:31]} 36. c7 {[%emt 0:00:30]} Rec8 {[%emt 0:00:36]} 37. Bd6 {[%emt 0:00:25]} Ra6 {[%emt 0:00:29]} 38. Rb4 {[%emt 0:02:10]} Rxd6 {[%emt 0:04:20]} 39. Rb8 {[%emt 0:00:05]} Rd2+ {[%emt 0:00:25]} 40. Kg3 {[%emt 0:00:00]} 1-0

[Event "ESTCC-65 2025"]
[Site "Swidnica"]
[Date "2025.04.10"]
[Round "7"]
[White "Krupa, Krzysztof"]
[Black "Vogel, Robert"]
[Result "1/2-1/2"]
[Annotator "ChessBase"]
[ECO "B21"]
[WhiteElo "1919"]
[BlackElo "2145"]
[PlyCount "43"]
[EventDate "2025.04.05"]
[EventType "team-tourn"]
[EventCountry "POL"]
[SourceTitle "playchess.com"]
[Source "ChessBase"]
[SourceQuality "1"]
[WhiteTeam "Poland"]
[BlackTeam "Germany"]
[WhiteTeamCountry "POL"]
[BlackTeamCountry "GER"]
[TimeControl "40/5400+30:1800+30"]

1. e4 {[%emt 0:00:07]} c5 {[%emt 0:00:19]} 2. d4 {[%emt 0:04:06]} cxd4 {[%emt 0:00:19]} 3. c3 {[%emt 0:00:02]} d5 {[%emt 0:01:51]} 4. exd5 {[%emt 0:03:28]} Qxd5 {[%emt 0:00:44]} 5. cxd4 {[%emt 0:00:58]} e5 {[%emt 0:03:00]} 6. Nf3 {[%emt 0:06:14]} exd4 {[%emt 0:01:27]} 7. Qxd4 {[%emt 0:00:14]} Qe6+ {[%emt 0:02:45]} 8. Qe3 {[%emt 0:09:37]} Bc5 {[%emt 0:07:35]} 9. Bb5+ {[%emt 0:02:56]} Nc6 {[%emt 0:01:21]} 10. Qxe6+ {[%emt 0:03:20]} Bxe6 {[%emt 0:00:13]} 11. O-O {[%emt 0:01:27]} Nf6 {[%emt 0:11:38]} 12. Ne5 {[%emt 0:09:03]} O-O {[%emt 0:07:26]} 13. Nxc6 {[%emt 0:10:27]} bxc6 {[%emt 0:01:10]} 14. Bxc6 {[%emt 0:00:22]} Rab8 {[%emt 0:19:55]} 15. Nd2 {[%emt 0:08:29]} Rfd8 {[%emt 0:04:39]} 16. h3 {[%emt 0:13:04]} Rb6 {[%emt 0:12:42]} 17. Ba4 {[%emt 0:01:26]} Rbd6 {[%emt 0:02:51]} 18. Nf3 {[%emt 0:03:15]} Ra6 {[%emt 0:05:09]} 19. b3 {[%emt 0:07:42]} Bc4 20. bxc4 Rxa4 21. Bb2 Rxc4 22. Rac1 1/2-1/2